Cogmind - Beta 17 @@@ ROGUE MODE // 2026.07.21 @ 09:37:31 Player: Blaf Result: Destroyed by G-34 Mercenary with Small Laser Performance ------------- Evolutions (0) 0 Regions Visited (2) 400 Robots Destroyed (9) 45 Value Destroyed (180) 180 Prototype IDs (0) 0 Alien Tech Used (0) 0 Bonus (0) 0 TOTAL SCORE: 625 Bonus ------- None Cogmind --------- Core Integrity 0/250 Matter 251/300 Energy 125/125 System Corruption 0% Temperature Cool (12) Movement Rolling (100) Location -10/Mines Parts ------- > --- POWER (1) -------- Light Ion Engine > --- PROPULSION (2) --- Compact Wheel > --- UTILITY (2) ------ Small Storage Unit > --- WEAPON (2) ------- Light Assault Rifle > --- INVENTORY (8) ---- Small Storage Unit Peak State ------------ > --- POWER ------------ Ion Engine > --- PROPULSION ------- Wheel Compact Wheel > --- UTILITY ---------- Small Storage Unit ECM Suite > --- WEAPON ----------- Light Assault Rifle Light Assault Rifle > --- INVENTORY -------- Light Ion Engine Compact Wheel Compact Wheel Small Storage Unit [Rating: 7] Favorites ----------- Power Ion Engine Engine Ion Engine Propulsion Compact Wheel Wheel Compact Wheel Utility Small Storage Unit Device ECM Suite Storage Small Storage Unit Protection Weapon Shielding Weapon Light Assault Rifle Ballistic Gun Light Assault Rifle Build | -11 -10 -10 ------- Run | Yrd Mat Min Slots Evolved . | . . . Power . | . . . Propulsion . | . . . Utility . | . . . Weapon . | . . . Parts Attached 15 | 6 1 8 Power 3 | 1 . 2 Engine 3 | 1 . 2 Core . | . . . Reactor . | . . . Propulsion 5 | 2 . 3 Treads . | . . . Leg . | . . . Wheel 5 | 2 . 3 Hover . | . . . Flight . | . . . Utility 3 | 1 1 1 Device 1 | . 1 . Storage 1 | 1 . . Processor . | . . . Hackware . | . . . Protection 1 | . . 1 Artifact . | . . . Weapon 4 | 2 . 2 Energy Gun . | . . . Energy Cannon . | . . . Ballistic Gun 4 | 2 . 2 Ballistic Cannon . | . . . Launcher . | . . . Special Weapon . | . . . Impact Weapon . | . . . Slashing Weapon . | . . . Piercing Weapon . | . . . Special Melee Weapon . | . . . Unidentified Prototypes . | . . . Parts Lost 11 | . . 11 Power 2 | . . 2 Propulsion 4 | . . 4 Utility 2 | . . 2 Weapon 3 | . . 3 Highest Loss Streak 6 | . . 6 To Critical Strikes . | . . . Average Backups 3 | . 3 3 Power . | . 1 . Propulsion 1 | . 1 1 Utility . | . . 1 Weapon . | . . . Tool/Special . | . . . Unused Backups 1 | . . 1 Power . | . . . Propulsion . | . . . Utility 1 | . . 1 Weapon . | . . . Tool/Special . | . . . Average Slot Usage (%) 92 | . 92 92 Engine 13 | . 14 13 Wheel 27 | . 28 26 Device 8 | . 7 9 Storage 14 | . 14 14 Protection 1 | . . 2 Ballistic Gun 25 | . 28 24 Peak Build Rating 7 | 6 7 7 Average Rating 6 | 4 6 6 On Entrance 4 | . 6 7 Avg Prop Armor Cover (%) . | . . . Naked Turns . | . . . Heaviest Build 15 | 12 14 15 Greatest Support 26 | 26 26 26 Greatest Overweight (x) . | . . . Average Overweight (x) . | . . . Largest Inventory Capacity 8 | 8 8 8 Average Capacity 7 | 6 8 8 Most Carried 4 | 1 4 4 Average Carried 3 | . 3 3 Final Capacity 8 | 8 8 8 Final Carried 4 | 1 4 1 Class Distribution -------------------- 100% | Mutant Dominant Class ---------------- Mutant | -10/Materials Mutant | -10/Mines Resources | -11 -10 -10 ----------- Run | Yrd Mat Min Matter Collected 387 | 205 79 103 Remotely . | . . . Salvage Created 272 | . 92 180 Parts 15 | . 6 9 Haulers Intercepted 1 | . 1 . Recyclers Shooed . | . . . Parts Field Recycled . | . . . Retrieved Matter . | . . . Parts Self-Destructed . | . . . Prevented . | . . . Parts Restored . | . . . Kills | -11 -10 -10 ------- Run | Yrd Mat Min Combat Hostiles Destroyed 8 | . 2 6 Guns 8 | . 2 6 Classes Destroyed 3 | . 2 1 Hauler 1 | . 1 . Swarmer 5 | . 2 3 Grunt 3 | . . 3 Best Kill Streak 3 | . 2 3 Combat Bots Only 3 | . 2 3 Max Kills in Single Turn 1 | . 1 1 Gunslinging . | . . . Exploded . | . . . Melee . | . . . Uniques/NPCs Destroyed . | . . . Combat | -11 -10 -10 -------- Run | Yrd Mat Min Hostile Shots Fired 105 | . 5 100 Missed 21 | . 3 18 Hits 84 | . 2 82 Projectile 84 | . 2 82 Critical Strikes 1 | . . 1 Actively Blocked 1 | . . 1 Damage Taken 956 | . 18 938 Core 251 | . . 251 Absorbed by Shields . | . . . Redirected to Shielding 41 | . . 41 Core Remaining (%) 100 | 100 . . Volleys Fired 68 | . 7 61 Largest 2 | . 2 2 Hottest 40 | . 40 40 Shots Fired 106 | . 14 92 Gun 106 | . 14 92 Cannon . | . . . Launcher . | . . . Special . | . . . Kinetic 106 | . 14 92 Thermal . | . . . Explosive . | . . . Electromagnetic . | . . . Robot Hit Streak 15 | . 4 15 Robot Miss Streak 5 | . 2 5 Penetration Max . | . . . Secondary Targets 2 | . . 2 Max Gunslinging Chain 1 | . . 1 Shots Hit Robots 66 | . 9 57 Core Hits 22 | . 5 17 Critical Kills . | . . . Critical Parts Destroyed . | . . . Critical Strikes . | . . . Melee Attacks . | . . . Impact . | . . . Slashing . | . . . Piercing . | . . . Sneak Attacks . | . . . Combat Hostiles . | . . . Follow-up Attacks . | . . . Damage Inflicted 615 | . 80 535 Guns 615 | . 80 535 Cannons . | . . . Explosions . | . . . Melee . | . . . Ramming . | . . . Kinetic 615 | . 80 535 Thermal . | . . . Explosive . | . . . Electromagnetic . | . . . Impact . | . . . Slashing . | . . . Piercing . | . . . Highest Corruption . | . . . Average Corruption . | . . . Corruption Purged . | . . . Corruption Blocked . | . . . Overload Shots . | . . . Overflow Damage . | . . . Projectiles . | . . . Explosions . | . . . Melee . | . . . Knockbacks . | . . . Impact . | . . . Kinetic . | . . . Secondary . | . . . Self-Inflicted Damage . | . . . Shots . | . . . Rammed . | . . . Targets Rammed . | . . . Kicked . | . . . Crushed . | . . . Highest Temperature 30 | . . 30 Average Temperature 13 | . . 13 Received Heat Transfer 429 | . . 429 Siege Activations . | . . . Martial Activations . | . . . Shielding Activations . | . . . Robots Disrupted . | . . . Combat Hostiles . | . . . Robots Corrupted . | . . . Combat Hostiles . | . . . Parts Fried . | . . . Impact Corruptions . | . . . Robots Melted . | . . . Combat Hostiles . | . . . Parts Melted . | . . . Heat Transferred . | . . . Parts Sabotaged . | . . . Parts Stolen . | . . . Parts Stripped . | . . . Power Chain Reactions . | . . . Alert | -11 -10 -10 ------- Run | Yrd Mat Min Maximum Alert Level . | . . . Low Security (%) 100 | 100 100 100 Level 1 . | . . . Level 2 . | . . . Level 3 . | . . . Level 4 . | . . . Level 5 . | . . . High Security . | . . . Max Security . | . . . Peak Influence 50 | . 50 34 Initial . | . . . Average 6 | . 9 5 Influence Increases 222 | . 72 150 Destroy 0b10 Robot/C 160 | . 40 120 Destroy 0b10 Robot/NC 5 | . 5 . Destroy Leader 42 | . 12 30 Lose Combat Pursuer 15 | . 15 . Influence Decreases 200 | . 72 128 Time Decay 160 | . 72 88 Lost Part 40 | . . 40 Squads Dispatched . | . . . Investigation . | . . . Extermination . | . . . Reinforcement . | . . . Assault . | . . . Garrison . | . . . Intercept . | . . . Searches Triggered . | . . . Construction Impeded . | . . . Haulers Reinforced . | . . . Active Scanning Responses . | . . . Cargo Convoy Interrupts . | . . . Stealth | -11 -10 -10 --------- Run | Yrd Mat Min Distress Signals 1 | . 1 . Communications Jammed . | . . . Distress Signals . | . . . Times Spotted 17 | . 10 7 Peak Tracking Total 4 | . 4 3 Tactical Retreats 2 | . 2 . ECM-based Alert Blocks 2 | . 2 . Traps | -11 -10 -10 ------- Run | Yrd Mat Min Traps Triggered . | . . . Indirectly . | . . . Trap Hack Attempts . | . . . Triggered . | . . . Disarmed . | . . . Reprogrammed . | . . . Reused . | . . . Traps Extracted . | . . . Installed . | . . . Triggered . | . . . Machines | -11 -10 -10 ---------- Run | Yrd Mat Min Machines Disabled . | . . . Max in Single Turn . | . . . Machines Repaired . | . . . Machines Dismantled . | . . . Machines Sabotaged . | . . . Overloaded Fab Kills . | . . . Hacking | -11 -10 -10 --------- Run | Yrd Mat Min Machines Accessed 2 | . 2 . Terminals 1 | . 1 . Fabricators . | . . . Repair Stations . | . . . Recycling Units 1 | . 1 . Scanalyzers . | . . . Garrison Access . | . . . Total Hacks 4 | . 4 . Successful 2 | . 2 . Failed 2 | . 2 . Catastrophic 1 | . 1 . Database Lockouts . | . . . Manual 3 | . 3 . Terminals 3 | . 3 . Fabricators . | . . . Repair Stations . | . . . Recycling Units 1 | . 1 . Scanalyzers . | . . . Garrison Access . | . . . Terminal Hacks . | . . . Fabricator Hacks . | . . . Repair Station Hacks . | . . . Recycling Unit Hacks 1 | . 1 . Retrieve Components 1 | . 1 . Scanalyzer . | . . . Garrison Access Hacks . | . . . Unauthorized Hacks 1 | . 1 . Terminals 1 | . 1 . Botnet 1 | . 1 . Fabricators . | . . . Repair Stations . | . . . Recycling Units . | . . . Scanalyzers . | . . . Garrison Access . | . . . Data Cores Recovered . | . . . Used . | . . . Hacking Detections 2 | . 2 . Full Trace Events . | . . . Feedback Events . | . . . Feedback Blocked . | . . . Robot Schematics Acquired . | . . . Robots Built . | . . . Authchips . | . . . Time . | . . . Total Robot Build Rating . | . . . Part Schematics Acquired . | . . . Parts Built . | . . . Authchips . | . . . Time . | . . . Total Part Build Rating . | . . . Part Studies Acquired . | . . . Parts Repaired . | . . . Time . | . . . Parts Recycled . | . . . Recycled Matter . | . . . Retrieved Matter . | . . . Retrieved Components 2 | . 2 . Parts Scanalyzed . | . . . Part Schematics Acquired . | . . . Parts Damaged . | . . . Bothacking | -11 -10 -10 ------------ Run | Yrd Mat Min Used RIF Installer . | . . . Robots Hacked . | . . . Non-combat . | . . . Combat . | . . . Robot Hacks Applied . | . . . Relay Couplers Released . | . . . Fabnet Peak Effective % . | . . . Robots Rewired . | . . . Allies Hacked . | . . . Hacks Repelled . | . . . Allies | -11 -10 -10 -------- Run | Yrd Mat Min Total Allies . | . . . Largest Group . | . . . Highest-Rated Group . | . . . Highest-Rated Ally . | . . . Total Orders . | . . . Ally Attacks . | . . . Total Damage . | . . . Kills . | . . . Allies Corrupted . | . . . Allies Melted . | . . . Intel | -11 -10 -10 ------- Run | Yrd Mat Min Active Infowar (turns) 604 | . 185 419 ECM 604 | . 185 419 Robot Analysis Total . | . . . Derelict Logs Recovered 1 | . . 1 Drone Launches . | . . . Drone Recoveries . | . . . Exploration | -11 -10 -10 ------------- Run | Yrd Mat Min Turns Passed 1030 | 72 347 611 Spaces Moved 918 | 73 343 502 Core 5 | 5 . . Treads . | . . . Legs . | . . . Wheels 913 | 68 343 502 Hover . | . . . Flight . | . . . Fastest Speed 50 | 50 90 80 Average Speed 89 | 86 90 89 Slowest Speed 90 | 90 90 90 Overloaded Moves . | . . . Propulsion Burnouts . | . . . Robots Hopped . | . . . Potential Cave-ins . | . . . Cave-ins Triggered . | . . . Exploration Rate (%) 45 | 4 49 83 Regions Visited 2 Branch Regions 1 Pre-discovered Areas . | . . . Known Exits Taken . | . . . Unknown Exits Taken 2 | 1 1 . Scrap Searched 2 | . . 2 Spaces Dug . | . . . Terrain Destroyed . | . . . Melee . | . . . Projectile . | . . . AOE . | . . . Terrain Rammed . | . . . Walls Destroyed . | . . . Machines Disabled . | . . . Actions | -11 -10 -10 --------- Run | Yrd Mat Min Total 1033 | 79 369 585 Wait 27 | . 16 11 Move 916 | 72 342 502 Hop . | . . . Pick Up 7 | 1 3 3 Fast Attach 9 | 6 1 2 Attach 6 | . . 6 Detach . | . . . Swap . | . . . Drop . | . . . Fire 68 | . 7 61 Melee . | . . . Ram . | . . . Kick . | . . . Crush . | . . . Escape Stasis . | . . . Rewire . | . . . Trap . | . . . Miscellaneous . | . . . Route ------- -11/Scrapyard -10/Materials (discovered 2 exits: [*Min x2]) -10/Mines (discovered 1 exit: [*Mat]) History --------- Turn | Location | Event 5 | -11/Scrapyard | Discovered new exit (range 16) 73 | -11/Scrapyard | Entered Materials 249 | -10/Materials | Discovered new exit (range 16) 313 | -10/Materials | Build established: Mutant 388 | -10/Materials | Discovered new exit (range 15) 420 | -10/Materials | Entered Mines 448 | -10/Mines | Met a Derelict bent on vengeance 835 | -10/Mines | Discovered new exit (range 9) 879 | -10/Mines | Lost 3 parts (1p1n1u) 974 | -10/Mines | Core integrity fell below 50% 979 | -10/Mines | A weapon hastily lodged in a ceiling crevice suddenly fell to the ground 1014 | -10/Mines | Core integrity fell below 20% 1031 | -10/Mines | Destroyed by G-34 Mercenary with Small Laser Last Messages --------------- 00853_ Switching to secondary target: S-10 Pest. 00870_ S-10 Pest destroyed. 00876_ Acquired Weapon Shielding. 00878_ Acquired 54 matter. 00881_ Acquired Lgt. Ion Engine. 00888_ Acquired 10 matter. 00890_ Acquired Lgt. Assault Rifle. 00941_ K-01 Serf cleans the Laser Drill. 00967_ Assault Rifle destroyed. 00971_ Com. Wheel destroyed. 00977_ Lgt. Ion Engine destroyed. 00979_ A Mak. Sword has been hastily shoved under some rubble with a note attached: "Here lies the sword of MA-1KR the Great. I think." 01001_ Wheel destroyed. 01003_ Destroyed Lgt. Nuclear Core. 01007_ Weapon Shielding destroyed. 01009_ Lgt. Assault Rifle destroyed. 01012_ G-47 Trooper destroyed. 01023_ K-01 Serf collects debris. Map ----- +----------------------------------------------------+ | | | | | | | | | | | ?????????????????????????????????????????????????? | | ?????????????????????????????????????????????????? | | ?????????????????????????????????????????????????? | | ?????????????????????????????????????????????????? | | ?????????????????????????????????????????????????? | | ?????????????????????????????????????????????????? | | ?????????????????????????????????????????????????? | | ??????????????????????????????????????####???????? | | ????????????# ???????????????????????## ##?????? | | ????????????# ???????????????????????# #####?? | | ????????????# ????????###???????????# ##? | | ????????????# ???????? #???????????# #? | | ???????????## ????????# #???????????## #? | | ???????????# #???????# #???????#????## ##? | | ???????????# ###????# ####?#? #?????# ##?? | | ???????????# ##??## ### ######## ##??? | | ???????????# #?## ### ##???? | | ???????????# ### kt ### #????? | | ???????????# g #??????# #???## | | ????????????# [% #???????# #??## | | ????????????## #####@ ##???????## ######?## | | ?????????????## ##???####?????????# #?????## | | ??????????????# #?????????????????# #???### | | ??????????????## /##?????????????????# #?### | | ####???????????# #??????????????????# ### # | | #???????????# #??????????????????# ## ## | | #???????????# #??????????????????# ## #? | | #???????????# #??????????????????# ### #? | | "" #???????????# #??????????????????# ### #? | | "" #####???????# #??????????????????# ## ##? | | ""%%=* #???????# #??????????????????# # ##### | | ##= #???????# ######?????????????# ##?## | | ## #??????## #?????????????### ##??# | | ##### # #### #???????????????# ##???# | | ????# ######### #?## ##???##??????#### ###?## | | ????# ######??# #?# #### ##????## ### | | ????# #??# !#?# ## #???## | | ????# #??# %### #???# """ | | ????###### #??#! #??# """ | | ???###?### #??# #?# """ | | ## ## #??#### ##?# ### | | ##????## ##??# ###??##### | | ###???#### #???## #?????????## | | # ## ##?????# ##???###??###??????# | | #???# ####### #???????## ##????## | +----------------------------------------------------+ Best States ------------- Heat Dissipation 25 Energy Generation 10 Energy Capacity 250 Matter Stores 300 Matter Capacity 300 Sight Range 16 Terrain Scan Density 10 ECM Strength 1 Weapon Shielding 33 Evasion (%) 44 Item Schematics ----------------- None Robot Schematics ------------------ None Fabricated ------------ Nothing Repaired ---------- Nothing Studied --------- None Alien Tech Used ----------------- None Achievements -------------- True Hacker Challenges ------------ None Game ------ Seed LargeDataRail Manual? 0 Play Time 00:16:22 Cumulative 26.4 hours Start 2026.07.21 @ 09:21:55 End 2026.07.21 @ 09:37:31 Sessions 1 Manual Loads 0 Difficulty Rogue Special Mode None Game No. 42 Rogue 42 Adventurer 0 Explorer 0 Win Type - Total 0 Types 0/0/0/0/0/0/0/0/0/0 Lore% 8 Gallery% 18 Achievement% 17 Wizard Run 0 Options --------- Layout 1 ASCII 0 Keyboard 0 Movement Arrows Keybinds 0 Fullscreen 1 Font 24/Smallcaps Map View 50x35 Zoom Use 0% Tactical HUD 1 Map Filters NONE Filters NONE Steam 1 RUN: a8312716-d09d-4394-841d-1c22171b805f